[Event "Titled Tuesday Blitz March 15 Early 2022"]
[White "Nan, M K Khine Hlyan"]
[Black "Miszler, Levente"]
[WhiteFideId "13002899"]
[BlackFideId "763276"]
[WhiteElo "1943"]
[BlackElo "1966"]
[Result "0-1"]
[Round "02"]
[TimeControl "180+1"]
[Date "2022.03.15"]
[WhiteClock "0:00:48"]
[BlackClock "0:00:54"]

1. e4 {[%clk 0:03:00]}  e6 {[%clk 0:02:57]} 2. d4 {[%clk 0:03:00]}  d5 {[%clk 0:02:58]} 3. exd5 {[%clk 0:02:59]}  exd5 {[%clk 0:02:58]} 4. Bd3 {[%clk 0:03:00]}  Bd6 {[%clk 0:02:55]} 5. Nf3 {[%clk 0:03:00]}  Nf6 {[%clk 0:02:55]} 6. O-O {[%clk 0:02:59]}  O-O {[%clk 0:02:56]} 7. h3 {[%clk 0:02:58]}  h6 {[%clk 0:02:53]} 8. Nbd2 {[%clk 0:02:56]}  Be6 {[%clk 0:02:52]} 9. c4 {[%clk 0:02:55]}  dxc4 {[%clk 0:02:47]} 10. Nxc4 {[%clk 0:02:54]}  Be7 {[%clk 0:02:46]} 11. Nce5 {[%clk 0:02:54]}  Nbd7 {[%clk 0:02:42]} 12. Nxd7 {[%clk 0:02:53]}  Qxd7 {[%clk 0:02:42]} 13. Ne5 {[%clk 0:02:52]}  Qd8 {[%clk 0:02:38]} 14. Be3 {[%clk 0:02:51]}  Nd5 {[%clk 0:02:37]} 15. Qf3 {[%clk 0:02:45]}  Bf6 {[%clk 0:02:34]} 16. Qg3 {[%clk 0:02:38]}  Nxe3 {[%clk 0:02:31]} 17. fxe3 {[%clk 0:02:33]}  Re8 {[%clk 0:02:28]} 18. Ng4 {[%clk 0:02:29]}  Bxg4 {[%clk 0:02:13]} 19. hxg4 {[%clk 0:02:28]}  Bg5 {[%clk 0:02:13]} 20. Rae1 {[%clk 0:02:15]}  c5 {[%clk 0:02:07]} 21. Bc4 {[%clk 0:02:15]}  Re7 {[%clk 0:02:04]} 22. dxc5 {[%clk 0:02:11]}  Qd2 {[%clk 0:01:57]} 23. Qd6 {[%clk 0:01:58]}  Bxe3+ {[%clk 0:01:51]} 24. Kh1 {[%clk 0:01:45]}  Rd7 {[%clk 0:01:30]} 25. Qe5 {[%clk 0:01:10]}  Bd4 {[%clk 0:01:20]} 26. Qf5 {[%clk 0:01:06]}  Bf6 {[%clk 0:01:14]} 27. Rd1 {[%clk 0:01:02]}  Qxd1 {[%clk 0:01:14]} 28. Rxd1 {[%clk 0:01:02]}  Rxd1+ {[%clk 0:01:15]} 29. Kh2 {[%clk 0:01:02]}  Rad8 {[%clk 0:01:12]} 30. b4 {[%clk 0:00:57]}  R1d4 {[%clk 0:01:12]} 31. Bb5 {[%clk 0:00:56]}  Rxb4 {[%clk 0:01:07]} 32. Bd3 {[%clk 0:00:55]}  Rbd4 {[%clk 0:00:59]} 33. Qh7+ {[%clk 0:00:54]}  Kf8 {[%clk 0:00:59]} 34. Bb5 {[%clk 0:00:52]}  Rxg4 {[%clk 0:00:54]} 35. Qe4 {[%clk 0:00:48]}  Rxe4 {[%clk 0:00:54]} 0-1


[Site "https://www.chess.com"]

[Event "Titled Tuesday Blitz March 15 Early 2022"]
[White "Navalgund, Niranjan"]
[Black "Babazada, Khazar"]
[WhiteFideId "5030854"]
[BlackFideId "13413554"]
[WhiteElo "2290"]
[BlackElo "2418"]
[Result "0-1"]
[Round "02"]
[TimeControl "180+1"]
[Date "2022.03.15"]
[WhiteClock "0:01:02"]
[BlackClock "0:01:43"]

1. e4 {[%clk 0:02:31]}  Nf6 {[%clk 0:03:00]} 2. e5 {[%clk 0:02:31]}  Nd5 {[%clk 0:03:00]} 3. Bc4 {[%clk 0:02:32]}  Nb6 {[%clk 0:03:00]} 4. Bb3 {[%clk 0:02:32]}  d5 {[%clk 0:02:59]} 5. exd6 {[%clk 0:02:32]}  cxd6 {[%clk 0:02:59]} 6. Nf3 {[%clk 0:02:33]}  g6 {[%clk 0:02:58]} 7. O-O {[%clk 0:02:33]}  Bg7 {[%clk 0:02:57]} 8. d4 {[%clk 0:02:33]}  O-O {[%clk 0:02:57]} 9. c3 {[%clk 0:02:33]}  Nc6 {[%clk 0:02:55]} 10. h3 {[%clk 0:02:34]}  Bf5 {[%clk 0:02:46]} 11. Bg5 {[%clk 0:02:32]}  Qd7 {[%clk 0:02:43]} 12. Nbd2 {[%clk 0:02:28]}  h6 {[%clk 0:02:39]} 13. Bf4 {[%clk 0:02:14]}  g5 {[%clk 0:02:39]} 14. Bxg5 {[%clk 0:01:54]}  hxg5 {[%clk 0:02:37]} 15. Nxg5 {[%clk 0:01:55]}  Bg6 {[%clk 0:02:38]} 16. Qf3 {[%clk 0:01:32]}  Qf5 {[%clk 0:02:34]} 17. Qg3 {[%clk 0:01:32]}  e5 {[%clk 0:02:30]} 18. Ndf3 {[%clk 0:01:31]}  Qf4 {[%clk 0:02:19]} 19. Qg4 {[%clk 0:01:27]}  Qxg4 {[%clk 0:02:16]} 20. hxg4 {[%clk 0:01:28]}  exd4 {[%clk 0:02:17]} 21. Nh4 {[%clk 0:01:28]}  d5 {[%clk 0:02:12]} 22. cxd4 {[%clk 0:01:25]}  Nxd4 {[%clk 0:02:12]} 23. Nxg6 {[%clk 0:01:25]}  fxg6 {[%clk 0:02:11]} 24. Bd1 {[%clk 0:01:24]}  Bh6 {[%clk 0:02:10]} 25. f4 {[%clk 0:01:22]}  Bxg5 {[%clk 0:02:09]} 26. fxg5 {[%clk 0:01:23]}  Ne6 {[%clk 0:02:09]} 27. Re1 {[%clk 0:01:22]}  Nxg5 {[%clk 0:02:07]} 28. Re7 {[%clk 0:01:22]}  Rae8 {[%clk 0:02:06]} 29. Rxe8 {[%clk 0:01:21]}  Rxe8 {[%clk 0:02:04]} 30. Bc2 {[%clk 0:01:22]}  Kg7 {[%clk 0:02:01]} 31. Bd3 {[%clk 0:01:20]}  Ne6 {[%clk 0:01:59]} 32. g3 {[%clk 0:01:19]}  Nc5 {[%clk 0:01:56]} 33. Bb5 {[%clk 0:01:20]}  Re4 {[%clk 0:01:54]} 34. Rc1 {[%clk 0:01:21]}  Ne6 {[%clk 0:01:49]} 35. Kg2 {[%clk 0:01:11]}  Rb4 {[%clk 0:01:48]} 36. Be8 {[%clk 0:01:11]}  Rxb2+ {[%clk 0:01:48]} 37. Kh3 {[%clk 0:01:08]}  Ng5+ {[%clk 0:01:44]} 38. Kh4 {[%clk 0:01:07]}  Kh6 {[%clk 0:01:44]} 39. Rh1 {[%clk 0:01:06]}  Nc4 {[%clk 0:01:43]} 40. Bxg6 {[%clk 0:01:06]}  Kxg6 {[%clk 0:01:44]} 41. a4 {[%clk 0:01:05]}  Ne5 {[%clk 0:01:44]} 42. Rf1 {[%clk 0:01:02]}  Rh2# {[%clk 0:01:43]} 0-1


[Site "https://www.chess.com"]

[Event "Titled Tuesday Blitz March 15 Early 2022"]
[White "Orlov, Georgi"]
[Black "Petrova, Irina"]
[WhiteFideId "2011271"]
[BlackFideId "14124122"]
[WhiteElo "2543"]
[BlackElo "1993"]
[Result "1-0"]
[Round "02"]
[TimeControl "180+1"]
[Date "2022.03.15"]
[WhiteClock "0:00:21"]
[BlackClock "0:00:02"]

1. d4 {[%clk 0:03:00]}  d5 {[%clk 0:02:59]} 2. Nf3 {[%clk 0:03:00]}  Nf6 {[%clk 0:02:58]} 3. c4 {[%clk 0:02:59]}  c6 {[%clk 0:02:58]} 4. Nc3 {[%clk 0:02:58]}  e6 {[%clk 0:02:55]} 5. e3 {[%clk 0:02:57]}  Nbd7 {[%clk 0:02:55]} 6. Bd3 {[%clk 0:02:57]}  dxc4 {[%clk 0:02:53]} 7. Bxc4 {[%clk 0:02:57]}  b5 {[%clk 0:02:54]} 8. Bd3 {[%clk 0:02:57]}  Bb7 {[%clk 0:02:54]} 9. e4 {[%clk 0:02:57]}  b4 {[%clk 0:02:46]} 10. Na4 {[%clk 0:02:57]}  c5 {[%clk 0:02:45]} 11. e5 {[%clk 0:02:57]}  Nd5 {[%clk 0:02:43]} 12. dxc5 {[%clk 0:02:56]}  Nxc5 {[%clk 0:02:27]} 13. Nxc5 {[%clk 0:02:52]}  Bxc5 {[%clk 0:02:28]} 14. O-O {[%clk 0:02:45]}  h6 {[%clk 0:02:20]} 15. Bb5+ {[%clk 0:02:34]}  Kf8 {[%clk 0:02:20]} 16. Qe2 {[%clk 0:02:20]}  Qb6 {[%clk 0:02:18]} 17. Bd3 {[%clk 0:02:17]}  g6 {[%clk 0:02:09]} 18. Nh4 {[%clk 0:02:06]}  Kg7 {[%clk 0:02:04]} 19. Qg4 {[%clk 0:02:03]}  Ne7 {[%clk 0:01:54]} 20. a3 {[%clk 0:01:44]}  a5 {[%clk 0:01:44]} 21. Qg3 {[%clk 0:01:35]}  Rad8 {[%clk 0:01:26]} 22. axb4 {[%clk 0:01:33]}  axb4 {[%clk 0:01:25]} 23. Bc2 {[%clk 0:01:24]}  Qc6 {[%clk 0:01:18]} 24. Nf3 {[%clk 0:01:18]}  Nf5 {[%clk 0:01:12]} 25. Bxf5 {[%clk 0:01:13]}  exf5 {[%clk 0:01:13]} 26. h4 {[%clk 0:01:12]}  Qe4 {[%clk 0:00:53]} 27. Bf4 {[%clk 0:01:03]}  Rd3 {[%clk 0:00:43]} 28. Rae1 {[%clk 0:01:00]}  Qc4 {[%clk 0:00:32]} 29. e6 {[%clk 0:00:59]}  Bxf3 {[%clk 0:00:30]} 30. gxf3 {[%clk 0:00:57]}  Qd5 {[%clk 0:00:24]} 31. Rc1 {[%clk 0:00:56]}  Rxf3 {[%clk 0:00:18]} 32. Qg2 {[%clk 0:00:51]}  Bd4 {[%clk 0:00:16]} 33. exf7 {[%clk 0:00:47]}  Qe4 {[%clk 0:00:13]} 34. Bd6 {[%clk 0:00:41]}  Kxf7 {[%clk 0:00:11]} 35. Rc7+ {[%clk 0:00:36]}  Kf6 {[%clk 0:00:09]} 36. Be7+ {[%clk 0:00:34]}  Kf7 {[%clk 0:00:06]} 37. Bxb4+ {[%clk 0:00:29]}  Kf6 {[%clk 0:00:06]} 38. Be7+ {[%clk 0:00:28]}  Kf7 {[%clk 0:00:06]} 39. Bc5+ {[%clk 0:00:24]}  Kf6 {[%clk 0:00:06]} 40. Bxd4+ {[%clk 0:00:24]}  Qxd4 {[%clk 0:00:04]} 41. Rc6+ {[%clk 0:00:24]}  Ke5 {[%clk 0:00:04]} 42. Qxf3 {[%clk 0:00:22]}  g5 {[%clk 0:00:02]} 43. Re1+ {[%clk 0:00:21]} 1-0


[Site "https://www.chess.com"]

[Event "Titled Tuesday Blitz March 15 Early 2022"]
[White "Paravyan, David"]
[Black "Jaferian, Koosha"]
[WhiteFideId "4194985"]
[BlackFideId "12507440"]
[WhiteElo "2569"]
[BlackElo "2030"]
[Result "1-0"]
[Round "02"]
[TimeControl "180+1"]
[Date "2022.03.15"]
[WhiteClock "0:02:01"]
[BlackClock "0:01:24"]

1. e4 {[%clk 0:03:00]}  c6 {[%clk 0:03:00]} 2. d4 {[%clk 0:03:00]}  d5 {[%clk 0:03:01]} 3. e5 {[%clk 0:03:00]}  Bf5 {[%clk 0:03:00]} 4. Nf3 {[%clk 0:02:59]}  e6 {[%clk 0:03:01]} 5. Be2 {[%clk 0:02:59]}  c5 {[%clk 0:03:01]} 6. Be3 {[%clk 0:02:58]}  cxd4 {[%clk 0:03:00]} 7. Nxd4 {[%clk 0:02:59]}  Ne7 {[%clk 0:03:00]} 8. O-O {[%clk 0:02:57]}  Nbc6 {[%clk 0:02:59]} 9. Bb5 {[%clk 0:02:58]}  a6 {[%clk 0:02:57]} 10. Bxc6+ {[%clk 0:02:57]}  bxc6 {[%clk 0:02:58]} 11. c4 {[%clk 0:02:53]}  Qd7 {[%clk 0:02:58]} 12. Nc3 {[%clk 0:02:45]}  dxc4 {[%clk 0:02:59]} 13. Nxf5 {[%clk 0:02:35]}  Qxd1 {[%clk 0:02:49]} 14. Nxg7+ {[%clk 0:02:21]}  Bxg7 {[%clk 0:02:49]} 15. Rfxd1 {[%clk 0:02:19]}  Bxe5 {[%clk 0:02:49]} 16. Bd4 {[%clk 0:02:16]}  Bxd4 {[%clk 0:02:48]} 17. Rxd4 {[%clk 0:02:17]}  Nd5 {[%clk 0:02:48]} 18. Rxc4 {[%clk 0:02:16]}  Kd7 {[%clk 0:02:13]} 19. Rc1 {[%clk 0:02:14]}  Rhc8 {[%clk 0:01:59]} 20. g3 {[%clk 0:02:05]}  Rab8 {[%clk 0:01:45]} 21. b3 {[%clk 0:02:04]}  Rb4 {[%clk 0:01:29]} 22. Nxd5 {[%clk 0:02:01]}  Rxc4 {[%clk 0:01:24]} 23. Nb6+ {[%clk 0:02:01]} 1-0


[Site "https://www.chess.com"]

[Event "Titled Tuesday Blitz March 15 Early 2022"]
[White "Petersson, Kjell"]
[Black "Chernov, Mikhail"]
[WhiteFideId "1705148"]
[BlackFideId "24143170"]
[WhiteElo "2009"]
[BlackElo "2189"]
[Result "0-1"]
[Round "02"]
[TimeControl "180+1"]
[Date "2022.03.15"]
[WhiteClock "0:00:19"]
[BlackClock "0:00:29"]

1. d4 {[%clk 0:03:00]}  Nf6 {[%clk 0:00:57]} 2. Bf4 {[%clk 0:03:00]}  d6 {[%clk 0:00:57]} 3. Nc3 {[%clk 0:02:59]}  Bf5 {[%clk 0:00:57]} 4. f3 {[%clk 0:02:45]}  Nbd7 {[%clk 0:00:58]} 5. e4 {[%clk 0:02:43]}  Bg6 {[%clk 0:00:59]} 6. Qd2 {[%clk 0:02:35]}  e5 {[%clk 0:00:59]} 7. Be3 {[%clk 0:02:31]}  Be7 {[%clk 0:00:59]} 8. O-O-O {[%clk 0:02:30]}  O-O {[%clk 0:00:59]} 9. h4 {[%clk 0:02:25]}  h5 {[%clk 0:00:58]} 10. Be2 {[%clk 0:02:21]}  a5 {[%clk 0:00:57]} 11. g4 {[%clk 0:02:20]}  a4 {[%clk 0:00:57]} 12. a3 {[%clk 0:02:13]}  b5 {[%clk 0:00:55]} 13. gxh5 {[%clk 0:01:59]}  Nxh5 {[%clk 0:00:54]} 14. Bxb5 {[%clk 0:01:50]}  exd4 {[%clk 0:00:52]} 15. Bxd4 {[%clk 0:01:48]}  c5 {[%clk 0:00:52]} 16. Be3 {[%clk 0:01:39]}  Rb8 {[%clk 0:00:51]} 17. Bxa4 {[%clk 0:01:32]}  Ne5 {[%clk 0:00:50]} 18. Qe2 {[%clk 0:01:19]}  Ng3 {[%clk 0:00:49]} 19. Qg2 {[%clk 0:01:14]}  Nxh1 {[%clk 0:00:50]} 20. Qxh1 {[%clk 0:01:14]}  Nc4 {[%clk 0:00:50]} 21. Bxc5 {[%clk 0:00:52]}  Bxh4 {[%clk 0:00:47]} 22. Bb4 {[%clk 0:00:45]}  Bg5+ {[%clk 0:00:46]} 23. Kb1 {[%clk 0:00:43]}  Qb6 {[%clk 0:00:44]} 24. Bb3 {[%clk 0:00:42]}  Nd2+ {[%clk 0:00:43]} 25. Ka2 {[%clk 0:00:39]}  Nxb3 {[%clk 0:00:44]} 26. cxb3 {[%clk 0:00:40]}  Rfc8 {[%clk 0:00:41]} 27. Na4 {[%clk 0:00:39]}  Qa6 {[%clk 0:00:40]} 28. Rxd6 {[%clk 0:00:38]}  Qf1 {[%clk 0:00:38]} 29. Qh2 {[%clk 0:00:34]}  Rc1 {[%clk 0:00:36]} 30. Rd1 {[%clk 0:00:27]}  Qxd1 {[%clk 0:00:31]} 31. Qxb8+ {[%clk 0:00:27]}  Kh7 {[%clk 0:00:30]} 32. Qh2+ {[%clk 0:00:28]}  Bh6 {[%clk 0:00:30]} 33. Qxh6+ {[%clk 0:00:22]}  gxh6 {[%clk 0:00:29]} 34. Nc3 {[%clk 0:00:19]}  Ra1# {[%clk 0:00:29]} 0-1


[Site "https://www.chess.com"]

[Event "Titled Tuesday Blitz March 15 Early 2022"]
[White "Pranav Anand"]
[Black "Martic, Ivan"]
[WhiteFideId "46626786"]
[BlackFideId "929301"]
[WhiteElo "2259"]
[BlackElo "2317"]
[Result "1-0"]
[Round "02"]
[TimeControl "180+1"]
[Date "2022.03.15"]
[WhiteClock "0:00:52"]
[BlackClock "0:00:35"]

1. Nf3 {[%clk 0:03:00]}  Nf6 {[%clk 0:02:59]} 2. g3 {[%clk 0:03:01]}  g6 {[%clk 0:02:59]} 3. Bg2 {[%clk 0:03:02]}  Bg7 {[%clk 0:03:00]} 4. O-O {[%clk 0:03:03]}  O-O {[%clk 0:03:01]} 5. d4 {[%clk 0:03:03]}  d6 {[%clk 0:03:01]} 6. c4 {[%clk 0:03:03]}  c6 {[%clk 0:02:59]} 7. Nc3 {[%clk 0:03:03]}  Nbd7 {[%clk 0:02:59]} 8. Qc2 {[%clk 0:03:00]}  e5 {[%clk 0:02:58]} 9. Rd1 {[%clk 0:03:01]}  exd4 {[%clk 0:02:53]} 10. Nxd4 {[%clk 0:03:02]}  Re8 {[%clk 0:02:50]} 11. Bf4 {[%clk 0:03:00]}  Ne5 {[%clk 0:02:37]} 12. b3 {[%clk 0:02:54]}  Qe7 {[%clk 0:02:33]} 13. Rac1 {[%clk 0:02:50]}  h5 {[%clk 0:02:20]} 14. Bg5 {[%clk 0:02:49]}  a6 {[%clk 0:02:15]} 15. e4 {[%clk 0:02:45]}  c5 {[%clk 0:02:09]} 16. Nd5 {[%clk 0:02:41]}  Qd8 {[%clk 0:02:07]} 17. Nf3 {[%clk 0:02:02]}  Bg4 {[%clk 0:02:01]} 18. Nxe5 {[%clk 0:02:00]}  Rxe5 {[%clk 0:02:02]} 19. Bxf6 {[%clk 0:01:57]}  Bxf6 {[%clk 0:01:59]} 20. Nxf6+ {[%clk 0:01:58]}  Qxf6 {[%clk 0:01:58]} 21. Rd3 {[%clk 0:01:58]}  Rae8 {[%clk 0:01:49]} 22. Qd2 {[%clk 0:01:57]}  Rxe4 {[%clk 0:01:34]} 23. Bxe4 {[%clk 0:01:49]}  Rxe4 {[%clk 0:01:34]} 24. Rxd6 {[%clk 0:01:45]}  Qf5 {[%clk 0:01:28]} 25. Rd8+ {[%clk 0:01:41]}  Kh7 {[%clk 0:01:18]} 26. Qc3 {[%clk 0:01:41]}  f6 {[%clk 0:01:14]} 27. Re1 {[%clk 0:01:23]}  Bf3 {[%clk 0:01:08]} 28. Re8 {[%clk 0:00:57]}  h4 {[%clk 0:00:43]} 29. R1xe4 {[%clk 0:00:54]}  Bxe4 {[%clk 0:00:44]} 30. Qe3 {[%clk 0:00:51]}  Bc6 {[%clk 0:00:35]} 31. Qe7+ {[%clk 0:00:50]}  Kh6 {[%clk 0:00:35]} 32. Rh8+ {[%clk 0:00:51]}  Kg5 {[%clk 0:00:35]} 33. Qe3+ {[%clk 0:00:52]}  Kg4 {[%clk 0:00:35]} 34. Rxh4# {[%clk 0:00:52]} 1-0


[Site "https://www.chess.com"]

[Event "Titled Tuesday Blitz March 15 Early 2022"]
[White "Riazantsev, Alexander"]
[Black "Pajeken, Jakob Leon"]
[WhiteFideId "4125029"]
[BlackFideId "12942839"]
[WhiteElo "2595"]
[BlackElo "2351"]
[Result "1-0"]
[Round "02"]
[TimeControl "180+1"]
[Date "2022.03.15"]
[WhiteClock "0:01:02"]
[BlackClock "0:00:04"]

1. d4 {[%clk 0:03:00]}  d5 {[%clk 0:02:58]} 2. c4 {[%clk 0:03:00]}  dxc4 {[%clk 0:02:57]} 3. e3 {[%clk 0:02:59]}  Nf6 {[%clk 0:02:55]} 4. Bxc4 {[%clk 0:02:58]}  e6 {[%clk 0:02:56]} 5. Nf3 {[%clk 0:02:58]}  c5 {[%clk 0:02:52]} 6. O-O {[%clk 0:02:57]}  Nc6 {[%clk 0:02:50]} 7. Qe2 {[%clk 0:02:56]}  a6 {[%clk 0:02:48]} 8. Rd1 {[%clk 0:02:55]}  b5 {[%clk 0:02:46]} 9. dxc5 {[%clk 0:02:49]}  Qc7 {[%clk 0:02:45]} 10. Bd3 {[%clk 0:02:47]}  Nb4 {[%clk 0:02:42]} 11. Nc3 {[%clk 0:02:18]}  Nxd3 {[%clk 0:02:40]} 12. Rxd3 {[%clk 0:02:19]}  Bxc5 {[%clk 0:02:40]} 13. e4 {[%clk 0:02:19]}  Ng4 {[%clk 0:02:34]} 14. Nd1 {[%clk 0:02:19]}  O-O {[%clk 0:02:23]} 15. h3 {[%clk 0:02:17]}  Ne5 {[%clk 0:02:23]} 16. Bf4 {[%clk 0:02:12]}  Nxf3+ {[%clk 0:02:21]} 17. Qxf3 {[%clk 0:02:04]}  e5 {[%clk 0:02:20]} 18. Be3 {[%clk 0:02:04]}  Bxe3 {[%clk 0:01:40]} 19. Nxe3 {[%clk 0:02:03]}  Be6 {[%clk 0:01:38]} 20. Nd5 {[%clk 0:02:03]}  Qb7 {[%clk 0:01:28]} 21. Rc1 {[%clk 0:01:46]}  Rac8 {[%clk 0:01:26]} 22. Rdc3 {[%clk 0:01:46]}  Rxc3 {[%clk 0:00:55]} 23. Rxc3 {[%clk 0:01:47]}  Rd8 {[%clk 0:00:52]} 24. Rc7 {[%clk 0:01:34]}  Qb8 {[%clk 0:00:44]} 25. Qc3 {[%clk 0:01:33]}  Bxd5 {[%clk 0:00:40]} 26. exd5 {[%clk 0:01:32]}  Qa8 {[%clk 0:00:22]} 27. Qxe5 {[%clk 0:01:28]}  Re8 {[%clk 0:00:17]} 28. Re7 {[%clk 0:01:21]}  Kf8 {[%clk 0:00:17]} 29. d6 {[%clk 0:01:16]}  Qd8 {[%clk 0:00:11]} 30. Rxe8+ {[%clk 0:01:08]}  Qxe8 {[%clk 0:00:12]} 31. f4 {[%clk 0:01:06]}  Qxe5 {[%clk 0:00:09]} 32. fxe5 {[%clk 0:01:05]}  Ke8 {[%clk 0:00:09]} 33. Kf2 {[%clk 0:01:06]}  Kd7 {[%clk 0:00:08]} 34. Ke3 {[%clk 0:01:06]}  f6 {[%clk 0:00:07]} 35. Kd4 {[%clk 0:01:05]}  Ke6 {[%clk 0:00:02]} 36. exf6 {[%clk 0:01:05]}  gxf6 {[%clk 0:00:03]} 37. Kc5 {[%clk 0:01:05]}  Kd7 {[%clk 0:00:03]} 38. Kd5 {[%clk 0:01:05]}  b4 {[%clk 0:00:04]} 39. Kc5 {[%clk 0:01:04]}  a5 {[%clk 0:00:04]} 40. Kd5 {[%clk 0:01:05]}  h6 {[%clk 0:00:03]} 41. Kc5 {[%clk 0:01:05]}  f5 {[%clk 0:00:03]} 42. Kd5 {[%clk 0:01:05]}  h5 {[%clk 0:00:04]} 43. Ke5 {[%clk 0:01:05]}  a4 {[%clk 0:00:04]} 44. Kd5 {[%clk 0:01:03]}  f4 {[%clk 0:00:03]} 45. Ke5 {[%clk 0:01:03]}  b3 {[%clk 0:00:03]} 46. axb3 {[%clk 0:01:01]}  axb3 {[%clk 0:00:04]} 47. Kd5 {[%clk 0:01:01]}  h4 {[%clk 0:00:04]} 48. Ke5 {[%clk 0:01:01]}  Kd8 {[%clk 0:00:03]} 49. Kxf4 {[%clk 0:01:01]}  Kd7 {[%clk 0:00:03]} 50. Ke5 {[%clk 0:01:01]}  Kc6 {[%clk 0:00:04]} 51. Ke6 {[%clk 0:01:02]} 1-0


[Site "https://www.chess.com"]

[Event "Titled Tuesday Blitz March 15 Early 2022"]
[White "Rosen, Eric"]
[Black "Gareyev, Timur"]
[WhiteFideId "2032562"]
[BlackFideId "14200937"]
[WhiteElo "2362"]
[BlackElo "2582"]
[Result "0-1"]
[Round "02"]
[TimeControl "180+1"]
[Date "2022.03.15"]
[WhiteClock "0:00:02"]
[BlackClock "0:00:29"]

1. d4 {[%clk 0:03:00]}  d6 {[%clk 0:02:59]} 2. e4 {[%clk 0:02:58]}  g6 {[%clk 0:02:57]} 3. Nf3 {[%clk 0:02:57]}  Nf6 {[%clk 0:02:50]} 4. Nc3 {[%clk 0:02:45]}  c6 {[%clk 0:02:45]} 5. a4 {[%clk 0:02:44]}  Bg7 {[%clk 0:02:40]} 6. h3 {[%clk 0:02:44]}  a5 {[%clk 0:02:28]} 7. Bg5 {[%clk 0:02:44]}  Na6 {[%clk 0:02:24]} 8. Bc4 {[%clk 0:02:41]}  Nb4 {[%clk 0:02:22]} 9. Bb3 {[%clk 0:02:37]}  h6 {[%clk 0:02:20]} 10. Be3 {[%clk 0:02:37]}  Qc7 {[%clk 0:02:16]} 11. Qd2 {[%clk 0:02:35]}  e5 {[%clk 0:02:14]} 12. O-O {[%clk 0:02:30]}  g5 {[%clk 0:02:08]} 13. dxe5 {[%clk 0:02:30]}  dxe5 {[%clk 0:02:08]} 14. Bc5 {[%clk 0:02:30]}  Bf8 {[%clk 0:02:06]} 15. Bxf8 {[%clk 0:02:08]}  Kxf8 {[%clk 0:02:07]} 16. Qe3 {[%clk 0:02:09]}  b6 {[%clk 0:02:01]} 17. Rfd1 {[%clk 0:01:53]}  Rg8 {[%clk 0:01:54]} 18. Nh2 {[%clk 0:01:53]}  Rg6 {[%clk 0:01:51]} 19. Ne2 {[%clk 0:01:52]}  Nh5 {[%clk 0:01:37]} 20. c3 {[%clk 0:01:51]}  Na6 {[%clk 0:01:36]} 21. Ng4 {[%clk 0:01:52]}  Nf4 {[%clk 0:01:28]} 22. Qf3 {[%clk 0:01:33]}  h5 {[%clk 0:01:23]} 23. Nxe5 {[%clk 0:00:44]}  Qxe5 {[%clk 0:01:20]} 24. Nxf4 {[%clk 0:00:41]}  gxf4 {[%clk 0:01:18]} 25. Rd8+ {[%clk 0:00:41]}  Ke7 {[%clk 0:01:10]} 26. Rad1 {[%clk 0:00:33]}  Nc5 {[%clk 0:01:10]} 27. Ba2 {[%clk 0:00:19]}  Bg4 {[%clk 0:01:07]} 28. Qxg4 {[%clk 0:00:02]}  hxg4 {[%clk 0:00:59]} 29. Rxa8 {[%clk 0:00:03]}  Rd6 {[%clk 0:00:48]} 30. Re1 {[%clk 0:00:03]}  gxh3 {[%clk 0:00:46]} 31. gxh3 {[%clk 0:00:03]}  f3 {[%clk 0:00:35]} 32. Ra7+ {[%clk 0:00:04]}  Nd7 {[%clk 0:00:31]} 33. Re3 {[%clk 0:00:03]}  Qg5+ {[%clk 0:00:30]} 34. Kf1 {[%clk 0:00:03]}  Rd1+ {[%clk 0:00:29]} 35. Re1 {[%clk 0:00:03]}  Rxe1+ {[%clk 0:00:29]} 36. Kxe1 {[%clk 0:00:02]}  Qc1# {[%clk 0:00:29]} 0-1


[Site "https://www.chess.com"]

[Event "Titled Tuesday Blitz March 15 Early 2022"]
[White "Samadov, Read"]
[Black "Koridze, Lile"]
[WhiteFideId "13417444"]
[BlackFideId "13612514"]
[WhiteElo "2084"]
[BlackElo "1999"]
[Result "1-0"]
[Round "02"]
[TimeControl "180+1"]
[Date "2022.03.15"]
[WhiteClock "0:01:14"]
[BlackClock "0:00:20"]

1. d4 {[%clk 0:03:00]}  Nf6 {[%clk 0:02:55]} 2. c4 {[%clk 0:03:01]}  e6 {[%clk 0:02:54]} 3. Nf3 {[%clk 0:03:01]}  d5 {[%clk 0:02:51]} 4. g3 {[%clk 0:03:02]}  Bb4+ {[%clk 0:02:49]} 5. Bd2 {[%clk 0:03:01]}  Be7 {[%clk 0:02:50]} 6. Bg2 {[%clk 0:03:01]}  O-O {[%clk 0:02:48]} 7. O-O {[%clk 0:03:02]}  c6 {[%clk 0:02:48]} 8. Qc2 {[%clk 0:03:02]}  b6 {[%clk 0:02:47]} 9. Rd1 {[%clk 0:03:02]}  Bb7 {[%clk 0:02:47]} 10. Bf4 {[%clk 0:02:58]}  Nbd7 {[%clk 0:02:45]} 11. Nc3 {[%clk 0:02:58]}  Rc8 {[%clk 0:02:29]} 12. Ne5 {[%clk 0:02:55]}  Nxe5 {[%clk 0:02:26]} 13. dxe5 {[%clk 0:02:44]}  Nd7 {[%clk 0:02:26]} 14. cxd5 {[%clk 0:02:35]}  cxd5 {[%clk 0:02:25]} 15. e4 {[%clk 0:02:35]}  g5 {[%clk 0:01:52]} 16. exd5 {[%clk 0:02:06]}  exd5 {[%clk 0:01:48]} 17. Be3 {[%clk 0:02:01]}  Nxe5 {[%clk 0:01:47]} 18. Qf5 {[%clk 0:01:50]}  Ng6 {[%clk 0:01:03]} 19. Nxd5 {[%clk 0:01:37]}  Bxd5 {[%clk 0:01:03]} 20. Bxd5 {[%clk 0:01:37]}  Qe8 {[%clk 0:00:57]} 21. Bxg5 {[%clk 0:01:30]}  Bxg5 {[%clk 0:00:53]} 22. Qxg5 {[%clk 0:01:30]}  Rc5 {[%clk 0:00:54]} 23. Rac1 {[%clk 0:01:25]}  Qb5 {[%clk 0:00:51]} 24. Rxc5 {[%clk 0:01:21]}  Qxc5 {[%clk 0:00:51]} 25. h4 {[%clk 0:01:21]}  Kh8 {[%clk 0:00:20]} 26. h5 {[%clk 0:01:18]}  Ne7 {[%clk 0:00:19]} 27. Qf6+ {[%clk 0:01:15]}  Kg8 {[%clk 0:00:20]} 28. h6 {[%clk 0:01:14]} 1-0


[Site "https://www.chess.com"]